Workbook

Sheet Descripción hoja
A6: En esta hoja se describen las instrucciones principales para la utilización del simulador diseñado.
A8: A lo largo de toda el archivo excel hay dos tipos de celda que contiene parámetros o variables, que se distinguen por un código de colores:
B9: 1 | C9: Celdas activas: estas celdas están indicadas en azul y son aquellas en las que el usuario puede introducir/modificar información
B10: 2 | C10: Celdas informativas: estas celdas son aquellas en las que se visualiza la información útil para el usuario pero no se pueden modificar, ya que se calculan a partir de otros parámetros y variables
A12: Así mismo, se han definido dos tipos de hojas:
B13: 1 | C13: Hojas activas: estas hojas son aquellas en las que el usuario puede introducir/modificar información
B14: 2 | C14: Hojas informativas: estas hojas son aquellas en las que se visualiza información útil para el usuario pero no se pueden modificar
A16: Para poder moverse de una hoja a otra, se puede hacer click sobre el texto de la columna azul que aparece en la parte izquierda
A18: A continuación se describe el objetivo y funcionamiento de cada una de las hojas
A20: Hoja Agua afluente:
B21: Esta hoja es una hoja activa
B22: En esta hoja se debe incluir las características del agua afluente.
B23: Se introducen las analíticas fundamentales del agua afluente y los ratios que se aplican para la caracterización y se calculan los valores de las concentraciones de los estados del vector de componente
A25: Hoja Parámetros:
B26: Esta hoja es una hoja activa
B27: En esta hoja el usuario puede definir los parámetros de operación y los parámetros estequiométricos y cinéticos del modelo:
C28: Caudal afluente (LIN), Temperatura de funcionamiento, fracción no sedimentable (fns), parámetros estequiométicos, parámetros cinéticos a 20ºC, factor de Arrenhius que corrige el parámetro cinético a la temperatura de funcionamiento
B29: A partir de estos parámetros, en las celdas informativas se calculan los siguientes parámetros:
C30: oxigeno disuelto (OD) saturado, parámetros cinéticos a la temperatura T
A32: Hoja Matriz de estequiometría:
B33: Esta hoja es una hoja informativa, donde el usuario no debe modificar nada.
B34: Es la matriz de estequiometría del ASM1 calculada a partir de los parámetros estequiométricos definidos en la hoja parámetros
A36: Hoja inicialización:
B37: Esta Hoja es una hoja informativa, donde el usuario no debe modificar nada.
B38: En esta hoja se calculan los valores iniciales de los estados en todos los reactores en función del TRH y TRS tal y como se explica en Marais and Ekama 1976
B39: Así mismo, se pantean unos valores de kLa, volumen total, fair y caudales de recirculación para que estén dentro de los límites que se han explicado en la teoría
A41: Hoja solver:
B42: La hoja solver es una hoja activa
B43: Es la hoja donde están definidos los balances hidráulicos y los balances de masa en cada uno de los reactores
B44: Antes de emplear la herramienta solver y realizar la optimización, hay que inicializar los valores de las variables independientes
C45: Para ello, simplemente hay que pulsar el botón inicializar así se copiarán los valores de la pestaña inicialización para tener un punto de partida bueno para la convergencia del problema
B46: A continuación se definen la función objetivo y restricciones del problema en el solver.
B47: Se accede a pestaña "Datos" de la barra de herramientas Excel y hacer clic en Solver (*Si solver no está activo consultar sección activar solver en esta hoja)
B48: Para configurar el solver hay que determinar tres apartados:
C49: Definir celda objetivo: se selecciona la celda donde se ha determinado la función objetivo a minimizar
C50: Definir celdas variables: se seleccionan los parámetros que se pueden modificar
C51: Definir restricciones: definir restricciones del problema | H51: (Además de las restricciones específicas del problema, siempre se tienen que incluir las restricciones de Derivadas=0 y Estados>0.0001)
A54: Activar solver:
B55: Ir a la pestaña archivo -> Opciones
B56: Complementos -> Complementos Excel -> hacer clic IR
B57: En el cuadro complementos disponibles activar Solver -> hacer clic en Aceptar
A59: Hoja resultados:
B60: Esta hoja es una hoja informativa, donde el usuario no debe modificar nada.
B61: En esta hoja se muestran los resultados más relevantes del diseño y operación de la planta
A63: Referencia:
A64: Marais, G. R. and Ekama, G.A. The activated sludge process Part I: Steady state behavviour. Special Supplement to WATER SA. Vol2, No 4.
A65: Rivas A., Irizar I. and Ayesa E. Model-based optimization of wastewater treatment plants design. Environmental Modelling and Software, 23, 4, pp. 435-450, 2008.

Sheet Agua Afluente
D4: Fangos Activados | I4: Analíticas fundamentales Agua Residual
X5: Agua influente
J6: SST | L6: 150 | N6: gSS/m3 | V6: 1 | W6: SI | X6: =L7*N17*N18 -> 57.6 | Z6: gDQO/m3
J7: DQOT | L7: 480 | N7: gDQO/m3 | V7: 2 | W7: SS | X7: =L7*N17*(1-N18) -> 230.4 | Z7: gDQO/m3
J8: N-NH4 | L8: 45 | N8: gN/m3 | V8: 3 | W8: XI | X8: =L6*N15*N16*N19 -> 34.7355 | Z8: gDQO/m3
D9: Agua afluente | J9: Alcalinidad | L9: 30 | V9: 4 | W9: XS | X9: =L6*N15*N16*(1-N19-N20) -> 142.8015 | Z9: gDQO/m3
V10: 5 | W10: XB,H | X10: =L6*N15*N16*N20 -> 15.438 | Z10: gDQO/m3
V11: 6 | W11: XB,A | X11: 0.01 | Z11: gDQO/m3
D12: Parámetros del modelo | V12: 7 | W12: XP | X12: 0.01 | Z12: gDQO/m3
I13: Ratios | V13: 8 | W13: SO2 | X13: 0 | Z13: g O2/m3
V14: 9 | W14: SNO | X14: 0.01 | Z14: gN/m3
D15: Matriz de estequiometría | J15: DQOP/SSV | N15: 1.55 | P15: g DQO/g SS | V15: 10 | W15: SNH | X15: =L8 -> 45 | Z15: gN/m3
J16: SSV/SST | N16: 0.83 | P16: g SS/g SS | V16: 11 | W16: SND | X16: =N21*X7 -> 6.912 | Z16: gN/m3
J17: DQOs/DQOT | N17: 0.6 | P17: g DQO/g DQO | V17: 12 | W17: XND | X17: =N22*X9 -> 4.284045 | Z17: gN/m3
D18: Inicialización | J18: SI/DQOs | N18: 0.2 | P18: g DQO/g DQO | V18: 13 | W18: SALK | X18: =L9 -> 30
J19: XI/DQOp | N19: 0.18 | P19: g DQO/g DQO
J20: XH/DQOP | N20: 0.08 | P20: g DQO/g DQO
D21: Solver | J21: SND/SS | N21: 0.03 | P21: g N/g DQO
J22: XND/XS | N22: 0.03 | P22: g N/g DQO
D24: Resultados

Sheet Parámetros
D4: Fangos Activados | I4: Parámetros globales | Q4: Parámetros estequiométricos | AA4: Parámetros cinéticos
J6: Lin | L6: 22651 | N6: m3/d | R6: YA | T6: 0.24 | V6: g DQO/g N | AD6: Valor a 20 ºC | AF6: Arrhenius | AH6: Valor a T
J7: Temperatura | L7: 13 | N7: ºC | R7: YH | T7: 0.67 | V7: g DQO/g DQO | AB7: µH | AD7: 6 | AF7: 1.072 | AH7: =muH_20*AF7^(Temp-20) -> 3.68797317 | AJ7: d-1
R8: fP | T8: 0.08 | V8: - | AB8: KS | AD8: 20 | AH8: =KS_20 -> 20 | AJ8: g DQO/m3
D9: Agua afluente | R9: iXB | T9: 0.086 | V9: g N/ g DQO | AB9: KO,H | AD9: 0.2 | AH9: =KOH_20 -> 0.2 | AJ9: g O2/m3
R10: iXE | T10: 0.06 | V10: g N/ g DQO | AB10: KNO | AD10: 0.5 | AH10: =KNO_20 -> 0.5 | AJ10: g N-NO3/m3
I11: Aireación | R11: iXP | T11: 0.06 | AB11: bH | AD11: 0.62 | AF11: 1.12 | AH11: =bH_20*AF11 -> 0.6944 | AJ11: d-1
D12: Parámetros del modelo | AB12: ƞg | AD12: 0.8 | AH12: =ng_20 -> 0.8 | AJ12: -
J13: SO2,SAT | L13: 9 | N13: g O2/m3 | AB13: ƞh | AD13: 0.4 | AH13: =nh_20 -> 0.4 | AJ13: -
AB14: kh | AD14: 3 | AF14: 1.116 | AH14: =kh_20*AF14^(Temp-20) -> 1.391463737 | AJ14: g DQO/g DQO
D15: Matriz de estequiometría | AB15: KX | AD15: 0.03 | AF15: 1.116 | AH15: =KX_20*AF15^(Temp-20) -> 0.01391463737 | AJ15: g DQO/g DQO
AB16: µA | AD16: 0.8 | AF16: 1.03 | AH16: =muA_20*AF16^(Temp-20) -> 0.6504732091 | AJ16: d-1
I17: Decantador secundario | AB17: KNH | AD17: 1 | AH17: =KNH_20 -> 1 | AJ17: g N-NH3/m3
D18: Inicialización | AB18: KO,A | AD18: 0.4 | AH18: =KOA_20 -> 0.4 | AJ18: g O2/m3
J19: fns | L19: 0.02 | N19: - | AB19: bA | AD19: 0.15 | AF19: 1.116 | AH19: =b_A*AF19^(Temp-20) -> 0.06957318683 | AJ19: d-1
AB20: Ka | AD20: 0.08 | AF20: 1.072 | AH20: =Ka_20*AF20^(Temp-20) -> 0.0491729756 | AJ20: m3
D21: Solver | AB21: k_nh_h | AD21: 0.05 | AH21: =AD21 -> 0.05
D24: Resultados

Sheet Matriz de estequiometría
D4: Fangos Activados
M7: 1 | N7: 2 | O7: 3 | P7: 4 | Q7: 5 | R7: 6 | S7: 7 | T7: 8 | U7: 9 | V7: 10 | W7: 11 | X7: 12 | Y7: 13
M8: SI | N8: SS | O8: XI | P8: XS | Q8: XB,H | R8: XB,A | S8: XP | T8: SO2 | U8: SNO | V8: SNH | W8: SND | X8: XND | Y8: SALK
D9: Agua afluente | M9: g DQO/m3 | N9: g DQO/m3 | O9: g DQO/m3 | P9: g DQO/m3 | Q9: g DQO/m3 | R9: g DQO/m3 | S9: g DQO/m3 | T9: g O2/m3 | U9: g N/m3 | V9: g N/m3 | W9: g N/m3 | X9: g N/m3
K10: 1 | L10: Crecimiento aerobio de biomasa heterótrofa | M10: 0 | N10: =-1/YH -> -1.492537313 | O10: 0 | P10: 0 | Q10: 1 | R10: 0 | S10: 0 | T10: =-(1-YH)/YH -> -0.4925373134 | U10: 0 | V10: =-i_XB -> -0.086 | W10: 0 | X10: 0 | Y10: =-i_XB/14 -> -0.006142857143
K11: 2 | L11: Crecimiento anóxico de biomasa heterótrofa | M11: 0 | N11: =-1/YH -> -1.492537313 | O11: 0 | P11: 0 | Q11: 1 | R11: 0 | S11: 0 | T11: 0 | U11: =-(1-YH)/2.86/YH -> -0.1722158439 | V11: =-i_XB -> -0.086 | W11: 0 | X11: 0 | Y11: =((1-YH)/(14*2.86*YH))-(i_XB/14) -> 0.006158274561
D12: Parámetros del modelo | K12: 3 | L12: Crecimiento aerobio de biomasa autótrofa | M12: 0 | N12: 0 | O12: 0 | P12: 0 | Q12: 0 | R12: 1 | S12: 0 | T12: =-(4.57-YA)/YA -> -18.04166667 | U12: =1/YA -> 4.166666667 | V12: =-i_XB-1/YA -> -4.252666667 | W12: 0 | X12: 0 | Y12: =-i_XB/14-1/7/YA -> -0.6013809524
K13: 4 | L13: Lisis de biomasa heterótrofa | M13: 0 | N13: 0 | O13: 0 | P13: =1-fp -> 0.92 | Q13: -1 | R13: 0 | S13: =fp -> 0.08 | T13: 0 | U13: 0 | V13: 0 | W13: 0 | X13: =i_XB-fp*i_XP -> 0.0812 | Y13: 0
K14: 5 | L14: Lisis de biomasa autótrofa | M14: 0 | N14: 0 | O14: 0 | P14: =1-fp -> 0.92 | Q14: 0 | R14: -1 | S14: =fp -> 0.08 | T14: 0 | U14: 0 | V14: 0 | W14: 0 | X14: =i_XB-fp*i_XP -> 0.0812 | Y14: 0
D15: Matriz de estequiometría | K15: 6 | L15: Amonificación de nitrógeno orgánico soluble | M15: 0 | N15: 0 | O15: 0 | P15: 0 | Q15: 0 | R15: 0 | S15: 0 | T15: 0 | U15: 0 | V15: 1 | W15: -1 | X15: 0 | Y15: =1/14 -> 0.07142857143
K16: 7 | L16: Hidrólisis de compuestos particulados | M16: 0 | N16: 1 | O16: 0 | P16: -1 | Q16: 0 | R16: 0 | S16: 0 | T16: 0 | U16: 0 | V16: 0 | W16: 0 | X16: 0 | Y16: 0
K17: 8 | L17: Hidrólisis de nitrógeno orgánico particulado | M17: 0 | N17: 0 | O17: 0 | P17: 0 | Q17: 0 | R17: 0 | S17: 0 | T17: 0 | U17: 0 | V17: 0 | W17: 1 | X17: -1 | Y17: 0
D18: Inicialización | K18: 9 | L18: Aporte de aireación | M18: 0 | N18: 0 | O18: 0 | P18: 0 | Q18: 0 | R18: 0 | S18: 0 | T18: 1 | U18: 0 | V18: 0 | W18: 0 | X18: 0 | Y18: 0
D21: Solver
D24: Resultados

Sheet Inicialización
D4: Fangos Activados
M5: R1 | N5: R2 | O5: R3 | P5: R4 | Q5: R5
J6: 1 | K6: SI | L6: g DQO/m3 | M6: ='Agua Afluente'!X6 -> 57.6 | N6: =M6 -> 57.6 | O6: =P6 -> 57.6 | P6: =M6 -> 57.6 | Q6: =O6 -> 57.6
J7: 2 | K7: SS | L7: g DQO/m3 | M7: =KS_T*(1+bH_T*(V_tot*(1-f_aer))/Lw)/((V_tot*(1-f_aer))/Lw*(mu_h_T-bH_T-1)) -> 11.42515822 | N7: =M7 -> 11.42515822 | O7: =P7 -> 11.42515822 | P7: 11.42515822 | Q7: 11.42515822
J8: 3 | K8: XI | L8: g DQO/m3 | M8: ='Agua Afluente'!X8*(N21/N23)/(N21/Qinf) -> 983.4922631 | N8: 983.4922631 | O8: 983.4922631 | P8: 983.4922631 | Q8: 983.4922631
D9: Agua afluente | J9: 4 | K9: XS | L9: g DQO/m3 | M9: =M7 -> 11.42515822 | N9: 11.42515822 | O9: 11.42515822 | P9: 11.42515822 | Q9: 11.42515822
J10: 5 | K10: XB,H | L10: g DQO/m3 | M10: =((V_tot*(1-f_aer))/Lw)/((V_tot*(1-f_aer))/Qinf)*(YH*('Agua Afluente'!X7+'Agua Afluente'!X9-Inicialización!M7-Inicialización!M9))/(1+bH_T*(V_tot*(1-f_aer))/Lw) -> 2593.75445 | N10: 2593.75445 | O10: 2593.75445 | P10: 2593.75445 | Q10: 2593.75445
J11: 6 | K11: XB,A | L11: g DQO/m3 | M11: =((V_tot*(f_aer))/Lw)/((V_tot*(f_aer))/Qinf)*(YA*('Agua Afluente'!X15-Inicialización!P15))/(1+b_A_T*((V_tot*(f_aer))/Lw)) -> 221.4896945 | N11: 221.4896945 | O11: 221.4896945 | P11: 221.4896945 | Q11: 221.4896945
D12: Parámetros del modelo | J12: 7 | K12: XP | L12: g DQO/m3 | M12: =fp*M10 -> 207.500356 | N12: 207.500356 | O12: 207.500356 | P12: 207.500356 | Q12: 207.500356
J13: 8 | K13: SO2 | L13: g O2/m3 | M13: 0 | N13: 0 | O13: 2 | P13: 2 | Q13: 2
J14: 9 | K14: SNO | L14: g N/m3 | M14: 1 | N14: 1 | O14: 6 | P14: 7 | Q14: 9
D15: Matriz de estequiometría | J15: 10 | K15: SNH | L15: g N/m3 | M15: 34.410158 | N15: 34.410158 | O15: 0.5 | P15: 0.5 | Q15: 1.5
J16: 11 | K16: SND | L16: g N/m3 | M16: ='Agua Afluente'!X16 -> 6.912 | N16: 6.912 | O16: 6.912 | P16: =M16 -> 6.912 | Q16: =O16 -> 6.912
J17: 12 | K17: XND | L17: g N/m3 | M17: =M9*'Agua Afluente'!N22 -> 0.3427547466 | N17: 0.3427547466 | O17: 0.3427547466 | P17: =M17 -> 0.3427547466 | Q17: =O17 -> 0.3427547466
D18: Inicialización | J18: 13 | K18: SALK | M18: ='Agua Afluente'!X18 -> 30 | N18: 30 | O18: 30 | P18: =M18 -> 30 | Q18: =O18 -> 30
D21: Solver | K21: kLa_R3 | L21: 250 | M21: V_TOT | N21: 6000
K22: kLa_R4 | L22: 250 | M22: fair | N22: 0.7
K23: kLa_R5 | L23: 250 | M23: Qw | N23: 800
D24: Resultados | K24: kLa_R1 | L24: 0.01 | M24: QR_int | N24: 200 | O24: %
K25: kLa_R2 | L25: 0.01 | M25: QR_ext | N25: 100 | O25: %

Sheet Solver
D4: Fangos Activados | K4: Estados | U4: Vector de cinéticas | AC4: Balances hidráulicos | AH4: Balances de masa
K5: R1 | L5: R2 | M5: R3 | N5: R4 | O5: R5 | P5: Efluente | Q5: Decantador espesado | U5: R1 | V5: R2 | W5: R3 | X5: R4 | Y5: R5 | AC5: ET·ρR1 | AD5: ET·ρR2 | AE5: ET·ρR3 | AF5: ET·ρR4 | AG5: ET·ρR5 | AH5: R1 | AI5: R2 | AJ5: R3 | AK5: R4 | AL5: R5
I6: 1 | J6: SI | K6: 57.6 | L6: 57.6 | M6: 57.6 | N6: 57.6 | O6: 57.6 | P6: =O6 -> 57.6 | Q6: =((Qinf+(LR_ext/100*Qinf)-Lw)*O6-(Qinf-Lw)*P6)/(LR_ext/100*Qinf) -> 57.6 | S6: 1 | T6: Crecimiento aerobio de biomasa heterótrofa | U6: =mu_h_T*(K7/(KS_T+K7))*(K13/(KOH_T+K13))*(K15/(K15+KNH_H_T))*K10 -> 334.6141328 | V6: =mu_h_T*(L7/(KS_T+L7))*(L13/(KOH_T+L13))*(L15/(L15+KNH_H_T))*L10 -> 2.748192825 | W6: =mu_h_T*(M7/(KS_T+M7))*(M13/(KOH_T+M13))*(M15/(M15+KNH_H_T))*M10 -> 1875.792882 | X6: =mu_h_T*(N7/(KS_T+N7))*(N13/(KOH_T+N13))*(N15/(N15+KNH_H_T))*N10 -> 1572.222033 | Y6: =mu_h_T*(O7/(KS_T+O7))*(O13/(KOH_T+O13))*(O15/(O15+KNH_H_T))*O10 -> 1507.849625 | AA6: 1 | AB6: SI | AC6: =MMULT($M35:$U35,U$6:U$14)*(V_tot*(1-f_aer)/2) -> 0 | AD6: =MMULT($M35:$U35,V$6:V$14)*(V_tot*(1-f_aer)/2) -> 0 | AE6: =MMULT($M35:$U35,W$6:W$14)*(V_tot*f_aer/3) -> 0 | AF6: =MMULT($M35:$U35,X$6:X$14)*(V_tot*f_aer/3) -> 0 | AG6: =MMULT($M35:$U35,Y$6:Y$14)*(V_tot*f_aer/3) -> 0 | AH6: =Qinf*'Agua Afluente'!X6+(LR_ext/100*Qinf)*Q6+L_Rint/100*Qinf*O6-(Qinf+L_Rint/100*Qinf+(LR_ext/100*Qinf))*K6+AC6 -> 0 | AI6: =(Qinf+(LR_ext/100*Qinf)+L_Rint/100*Qinf)*K6-(Qinf+(LR_ext/100*Qinf)+L_Rint/100*Qinf)*L6+AD6 -> 0 | AJ6: =(Qinf+(LR_ext/100*Qinf)+L_Rint/100*Qinf)*L6-(Qinf+(LR_ext/100*Qinf)+L_Rint/100*Qinf)*M6+AE6 -> 0 | AK6: =(Qinf+(LR_ext/100*Qinf)+L_Rint/100*Qinf)*M6-(Qinf+(LR_ext/100*Qinf)+L_Rint/100*Qinf)*N6+AF6 -> 0 | AL6: =(Qinf+(LR_ext/100*Qinf)+L_Rint/100*Qinf)*N6-(Qinf+(LR_ext/100*Qinf)-Lw)*O6-Lw*O6-L_Rint/100*Qinf*O6+AG6 -> 0
I7: 2 | J7: SS | K7: 28.21464918 | L7: 18.18837232 | M7: 7.66073221 | N7: 5.803320775 | O7: 5.450337576 | P7: =O7 -> 5.450337576 | Q7: 5.450337576 | S7: 2 | T7: Crecimiento anóxico de biomasa heterótrofa | U7: =mu_h_T*(K7/(KS_T+K7))*(KOH_T/(KOH_T+K13))*(K14/(KNO_T+K14))*(K15/(K15+KNH_H_T))*ng_T*K10 -> 2533.52372 | V7: =mu_h_T*(L7/(KS_T+L7))*(KOH_T/(KOH_T+L13))*(L14/(KNO_T+L14))*(L15/(L15+KNH_H_T))*ng_T*L10 -> 882.7074806 | W7: =mu_h_T*(M7/(KS_T+M7))*(KOH_T/(KOH_T+M13))*(M14/(KNO_T+M14))*(M15/(M15+KNH_H_T))*ng_T*M10 -> 145.5530736 | X7: =mu_h_T*(N7/(KS_T+N7))*(KOH_T/(KOH_T+N13))*(N14/(KNO_T+N14))*(N15/(N15+KNH_H_T))*ng_T*N10 -> 93.87721021 | Y7: =mu_h_T*(O7/(KS_T+O7))*(KOH_T/(KOH_T+O13))*(O14/(KNO_T+O14))*(O15/(O15+KNH_H_T))*ng_T*O10 -> 83.78447949 | AA7: 2 | AB7: SS | AC7: -3032797.116 | AD7: -908420.7967 | AE7: -953846.3045 | AF7: -168288.9057 | AG7: -31981.68977 | AH7: =Qinf*'Agua Afluente'!X7+(LR_ext/100*Qinf)*Q7+L_Rint/100*Qinf*O7-(Qinf+L_Rint/100*Qinf+(LR_ext/100*Qinf))*K7+AC7 -> -0.000426385086 | AI7: -0.008481751429 | AJ7: 6.269349251e-05 | AK7: -1.482080552e-05 | AL7: -2.707832755e-05
I8: 3 | J8: XI | K8: 636.0396845 | L8: 636.0396845 | M8: 636.0396845 | N8: 636.0396845 | O8: 636.0396845 | P8: =f_ns*O8 -> 12.72079369 | Q8: 1237.343869 | S8: 3 | T8: Crecimiento aerobio de biomasa autótrofa | U8: =mu_A_T*(K15/(KNH_T+K15))*(K13/(KOA_T+K13))*K11 -> 2.117418858 | V8: =mu_A_T*(L15/(KNH_T+L15))*(L13/(KOA_T+L13))*L11 -> 0.02060354557 | W8: =mu_A_T*(M15/(KNH_T+M15))*(M13/(KOA_T+M13))*M11 -> 43.29330923 | X8: =mu_A_T*(N15/(KNH_T+N15))*(N13/(KOA_T+N13))*N11 -> 45.29592315 | Y8: =mu_A_T*(O15/(KNH_T+O15))*(O13/(KOA_T+O13))*O11 -> 45.06548041 | AA8: 3 | AB8: XI | AC8: 0 | AD8: 0 | AE8: 0 | AF8: 0 | AG8: 0 | AH8: =Qinf*'Agua Afluente'!X8+(LR_ext/100*Qinf)*Q8+L_Rint/100*Qinf*O8-(Qinf+L_Rint/100*Qinf+(LR_ext/100*Qinf))*K8+AC8 -> 0 | AI8: 0 | AJ8: 0 | AK8: 0 | AL8: 0
D9: Agua afluente | I9: 4 | J9: XS | K9: 208.9319015 | L9: 218.9396712 | M9: 203.3336219 | N9: 187.2872406 | O9: 171.4791809 | P9: =f_ns*O9 -> 3.429583618 | Q9: 333.5935136 | S9: 4 | T9: Lisis de biomasa heterótrofa | U9: =bH_T*K10 -> 1425.051239 | V9: =bH_T*L10 -> 1421.354763 | W9: =bH_T*M10 -> 1427.724187 | X9: =bH_T*N10 -> 1430.254744 | Y9: =bH_T*O10 -> 1431.967926 | AA9: 4 | AB9: XS | AC9: 370892.6969 | AD9: 906743.9601 | AE9: -1413970.49 | AF9: -1453866.329 | AG9: -1432273.44 | AH9: =Qinf*'Agua Afluente'!X9+(LR_ext/100*Qinf)*Q9+L_Rint/100*Qinf*O9-(Qinf+L_Rint/100*Qinf+(LR_ext/100*Qinf))*K9+AC9 -> -0.000101085694 | AI9: -0.0020239281 | AJ9: -1.249602064e-06 | AK9: 1.607136801e-05 | AL9: 2.095662057e-05
I10: 5 | J10: XB,H | K10: 2052.205125 | L10: 2046.881859 | M10: 2056.054417 | N10: 2059.698653 | O10: 2062.165792 | P10: =f_ns*O10 -> 41.24331583 | Q10: 4011.712258 | S10: 5 | T10: Lisis de biomasa autótrofa | U10: =b_A*K11 -> 13.13483531 | V10: =b_A*L11 -> 13.11532417 | W10: =b_A*M11 -> 13.18510831 | X10: =b_A*N11 -> 13.25936197 | Y10: =b_A*O11 -> 13.33291103 | AA10: 5 | AB10: XB,H | AC10: 1298777.952 | AD10: -482309.1805 | AE10: 831070.4757 | AF10: 330182.2984 | AG10: 223532.651 | AH10: =Qinf*'Agua Afluente'!X10+(LR_ext/100*Qinf)*Q10+L_Rint/100*Qinf*O10-(Qinf+L_Rint/100*Qinf+(LR_ext/100*Qinf))*K10+AC10 -> 0.0003534099087 | AI10: 0.007038909476 | AJ10: -4.118075594e-05 | AK10: -8.157803677e-07 | AL10: 4.078814527e-06
I11: 6 | J11: XB,A | K11: 87.56556876 | L11: 87.4354945 | M11: 87.90072209 | N11: 88.39574644 | O11: 88.88607354 | P11: =f_ns*O11 -> 1.777721471 | Q11: 172.9178868 | S11: 6 | T11: Amonificación de nitrógeno orgánico soluble | U11: =Ka*K16*K10 -> 180.0407354 | V11: =Ka*L16*L10 -> 100.4823601 | W11: =Ka*M16*M10 -> 139.2996066 | X11: =Ka*N16*N10 -> 158.099009 | Y11: =Ka*O16*O10 -> 167.1397945 | AA11: 6 | AB11: XB,A | AC11: -9915.67481 | AD11: -11785.24857 | AE11: 42151.48129 | AF11: 44851.18565 | AG11: 44425.59713 | AH11: =Qinf*'Agua Afluente'!X11+(LR_ext/100*Qinf)*Q11+L_Rint/100*Qinf*O11-(Qinf+L_Rint/100*Qinf+(LR_ext/100*Qinf))*K11+AC11 -> -1.961125236e-07 | AI11: -4.676621757e-09 | AJ11: 1.178406819e-06 | AK11: 7.399430615e-07 | AL11: 1.727581548e-06
D12: Parámetros del modelo | I12: 7 | J12: XP | K12: 552.9061784 | L12: 554.0461043 | M12: 555.8272822 | N12: 557.61168 | O12: 559.3982865 | P12: =f_ns*O12 -> 11.18796573 | Q12: 1088.246625 | S12: 7 | T12: Hidrólisis de compuestos particulados | U12: =kh_T*((K9/K10)/(KX_T+K9/K10))*((K13/(KOH_T+K13))+nh_T*(KOH_T/(KOH_T+K13))*(K14/(KNO_T+K14)))*K10 -> 911.0281916 | V12: =kh_T*((L9/L10)/(KX_T+L9/L10))*((L13/(KOH_T+L13))+nh_T*(KOH_T/(KOH_T+L13))*(L14/(KNO_T+L14)))*L10 -> 312.2191912 | W12: =kh_T*((M9/M10)/(KX_T+M9/M10))*((M13/(KOH_T+M13))+nh_T*(KOH_T/(KOH_T+M13))*(M14/(KNO_T+M14)))*M10 -> 2335.615474 | X12: =kh_T*((N9/N10)/(KX_T+N9/N10))*((N13/(KOH_T+N13))+nh_T*(KOH_T/(KOH_T+N13))*(N14/(KNO_T+N14)))*N10 -> 2366.508927 | Y12: =kh_T*((O9/O10)/(KX_T+O9/O10))*((O13/(KOH_T+O13))+nh_T*(KOH_T/(KOH_T+O13))*(O14/(KNO_T+O14)))*O10 -> 2352.729227 | AA12: 7 | AB12: XP | AC12: 103549.3973 | AD12: 103281.8463 | AE12: 161381.8411 | AF12: 161673.5799 | AG12: 161873.6937 | AH12: =Qinf*'Agua Afluente'!X12+(LR_ext/100*Qinf)*Q12+L_Rint/100*Qinf*O12-(Qinf+L_Rint/100*Qinf+(LR_ext/100*Qinf))*K12+AC12 -> -4.467437975e-09 | AI12: 4.947651178e-09 | AJ12: -4.45288606e-09 | AK12: -3.492459655e-09 | AL12: 7.479684427e-09
I13: 8 | J13: SO2 | K13: 0.0163975363 | L13: 0.0001534387755 | M13: 1.731804262 | N13: 2.448183959 | O13: 2.709451681 | P13: =O13 -> 2.709451681 | Q13: 2.709451681 | S13: 8 | T13: Hidrólisis de nitrógeno orgánico particulado | U13: =U12*K17/K9 -> 61.23988196 | V13: =V12*L17/L9 -> 21.37540745 | W13: =W12*M17/M9 -> 163.8588875 | X13: =X12*N17/N9 -> 169.9537385 | Y13: =Y12*O17/O9 -> 172.7889279 | AA13: 8 | AB13: SO2 | AC13: -182629.6877 | AD13: -1471.780212 | AE13: 156894.4912 | AF13: 64906.86607 | AG13: 23671.90064 | AH13: =Qinf*'Agua Afluente'!X13+(LR_ext/100*Qinf)*Q13+L_Rint/100*Qinf*O13-(Qinf+L_Rint/100*Qinf+(LR_ext/100*Qinf))*K13+AC13 -> 3.152323188e-06 | AI13: 2.982096703e-07 | AJ13: 3.358640242e-06 | AK13: -9.976844012e-06 | AL13: -2.920296538e-05
I14: 9 | J14: SNO | K14: 1.731743952 | L14: 0.222568554 | M14: 2.622585555 | N14: 5.289048605 | O14: 7.967532427 | P14: =O14 -> 7.967532427 | Q14: 7.967532427 | S14: 9 | T14: Aporte de aireación | U14: =L24*(S_O2_sat-Solver!K13) -> 0.08983602464 | V14: =L25*(S_O2_sat-Solver!L13) -> 0.08999846561 | W14: =L21*(S_O2_sat-M13) -> 1817.048935 | X14: =L22*(S_O2_sat-N13) -> 1637.95401 | Y14: =L23*(S_O2_sat-Solver!O13) -> 1572.63708 | AA14: 9 | AB14: SNO | AC14: -384741.3121 | AD14: -136737.329 | AE14: 217451.1403 | AF14: 241592.2182 | AG14: 242681.3483 | AH14: =Qinf*'Agua Afluente'!X14+(LR_ext/100*Qinf)*Q14+L_Rint/100*Qinf*O14-(Qinf+L_Rint/100*Qinf+(LR_ext/100*Qinf))*K14+AC14 -> -6.154365838e-05 | AI14: -0.001212312549 | AJ14: 3.403110895e-06 | AK14: 2.079061233e-06 | AL14: 5.810143193e-06
D15: Matriz de estequiometría | I15: 10 | J15: SNH | K15: 16.85821428 | L15: 17.09905351 | M15: 13.72053356 | N15: 10.97297734 | O15: 8.479214514 | P15: 8.479214514 | Q15: 8.479214514 | AA15: 10 | AB15: SNH | AC15: -68061.41688 | AD15: 21820.99698 | AE15: -306107.4222 | AF15: -248939.5838 | AG15: -225944.8868 | AH15: =Qinf*'Agua Afluente'!X15+(LR_ext/100*Qinf)*Q15+L_Rint/100*Qinf*O15-(Qinf+L_Rint/100*Qinf+(LR_ext/100*Qinf))*K15+AC15 -> -2.954299271e-05 | AI15: -0.0006051876298 | AJ15: -1.408858225e-06 | AK15: -3.050314263e-06 | AL15: -7.74837099e-06
I16: 11 | J16: SND | K16: 1.784117778 | L16: 0.9983218137 | M16: 1.377808296 | N16: 1.560985875 | O16: 1.648275473 | P16: =O16 -> 1.648275473 | Q16: 1.648275473 | AA16: 11 | AB16: SND | AC16: -106920.7681 | AD16: -71196.2574 | AE16: 34382.99327 | AF16: 16596.62134 | AG16: 7908.786742 | AH16: =Qinf*'Agua Afluente'!X16+(LR_ext/100*Qinf)*Q16+L_Rint/100*Qinf*O16-(Qinf+L_Rint/100*Qinf+(LR_ext/100*Qinf))*K16+AC16 -> 6.754271453e-06 | AI16: 0.0001387398806 | AJ16: 6.108166417e-08 | AK16: -1.017506293e-06 | AL16: -1.312259883e-06
I17: 12 | J17: XND | K17: 14.04453243 | L17: 14.98922811 | M17: 14.26519966 | N17: 13.45026268 | O17: 12.59375855 | P17: =f_ns*O17 -> 0.2518751711 | Q17: 24.49974477 | AA17: 12 | AB17: XND | AC17: 49986.74453 | AD17: 85593.20726 | AE17: -65599.87375 | AF17: -73836.5503 | AG17: -77602.69997 | AH17: =Qinf*'Agua Afluente'!X17+(LR_ext/100*Qinf)*Q17+L_Rint/100*Qinf*O17-(Qinf+L_Rint/100*Qinf+(LR_ext/100*Qinf))*K17+AC17 -> -6.770096661e-06 | AI17: -0.0001389126992 | AJ17: -9.755603969e-08 | AK17: 1.055333996e-06 | AL17: 1.376727596e-06
D18: Inicialización | I18: 13 | J18: SALK | K18: 27.86689074 | L18: 27.99189178 | M18: 27.57913914 | N18: 27.19242348 | O18: 26.82297729 | P18: =O18 -> 26.82297729 | Q18: 26.82297729 | AA18: 13 | AB18: SALK | AC18: 22619.99251 | AD18: 11325.59471 | AE18: -37397.04018 | AF18: -35037.98586 | AG18: -33473.30251 | AH18: =Qinf*'Agua Afluente'!X18+(LR_ext/100*Qinf)*Q18+L_Rint/100*Qinf*O18-(Qinf+L_Rint/100*Qinf+(LR_ext/100*Qinf))*K18+AC18 -> 2.286102244e-06 | AI18: 4.336657548e-05 | AJ18: -3.436362022e-07 | AK18: -3.658642527e-07 | AL18: -9.692084859e-07
D21: Solver | K21: kLa_R3 | L21: 250 | M21: V_TOT | N21: 6000 | P21: TSS | Q21: =(O8+O9+O10+O11+O12)/'Agua Afluente'!N15/'Agua Afluente'!N16 -> 2734.527024 | AJ21: Función objetivo | AL21: =SUMSQ(Derivadas) -> 0.0001277890991
K22: kLa_R4 | L22: 250 | M22: fair | N22: 0.7 | P22: NT | Q22: =P16+P17+P14+P15 -> 18.34689759
K23: kLa_R5 | L23: 250 | M23: Qw | N23: 800 | P23: HRT | Q23: =N21/Qinf*24 -> 6.357335217
D24: Resultados | K24: kLa_R1 | L24: 0.01 | M24: QR_int | N24: 200 | O24: % | P24: SRT | Q24: =N21/N23 -> 7.5
K25: kLa_R2 | L25: 0.01 | M25: QR_ext | N25: 100 | O25: %
M32: Matriz de estquiometría transpuesta
M33: 1 | N33: 2 | O33: 3 | P33: 4 | Q33: 5 | R33: 6 | S33: 7 | T33: 8 | U33: 9
M34: Crecimiento aerobio de biomasa heterótrofa | N34: Crecimiento anóxico de biomasa heterótrofa | O34: Crecimiento aerobio de biomasa autótrofa | P34: Lisis de biomasa heterótrofa | Q34: Lisis de biomasa autótrofa | R34: Amonificación de nitrógeno orgánico soluble | S34: Hidrólisis de compuestos particulados | T34: Hidrólisis de nitrógeno orgánico particulado | U34: Aporte de aireación
I35: 1 | J35: SI | K35: g DQO/m3 | M35: 0 | N35: 0 | O35: 0 | P35: 0 | Q35: 0 | R35: 0 | S35: 0 | T35: 0 | U35: 0
I36: 2 | J36: SS | K36: g DQO/m3 | M36: =-1/YH -> -1.492537313 | N36: =-1/YH -> -1.492537313 | O36: 0 | P36: 0 | Q36: 0 | R36: 0 | S36: 1 | T36: 0 | U36: 0
I37: 3 | J37: XI | K37: g DQO/m3 | M37: 0 | N37: 0 | O37: 0 | P37: 0 | Q37: 0 | R37: 0 | S37: 0 | T37: 0 | U37: 0
I38: 4 | J38: XS | K38: g DQO/m3 | M38: 0 | N38: 0 | O38: 0 | P38: =1-fp -> 0.92 | Q38: =1-fp -> 0.92 | R38: 0 | S38: -1 | T38: 0 | U38: 0
I39: 5 | J39: XB,H | K39: g DQO/m3 | M39: 1 | N39: 1 | O39: 0 | P39: -1 | Q39: 0 | R39: 0 | S39: 0 | T39: 0 | U39: 0
I40: 6 | J40: XB,A | K40: g DQO/m3 | M40: 0 | N40: 0 | O40: 1 | P40: 0 | Q40: -1 | R40: 0 | S40: 0 | T40: 0 | U40: 0
I41: 7 | J41: XP | K41: g DQO/m3 | M41: 0 | N41: 0 | O41: 0 | P41: =fp -> 0.08 | Q41: =fp -> 0.08 | R41: 0 | S41: 0 | T41: 0 | U41: 0
I42: 8 | J42: SO2 | K42: g O2/m3 | M42: =-(1-YH)/YH -> -0.4925373134 | N42: 0 | O42: =-(4.57-YA)/YA -> -18.04166667 | P42: 0 | Q42: 0 | R42: 0 | S42: 0 | T42: 0 | U42: 1
I43: 9 | J43: SNO | K43: g N/m3 | M43: 0 | N43: =-(1-YH)/2.86/YH -> -0.1722158439 | O43: =1/YA -> 4.166666667 | P43: 0 | Q43: 0 | R43: 0 | S43: 0 | T43: 0 | U43: 0
I44: 10 | J44: SNH | K44: g N/m3 | M44: =-i_XB -> -0.086 | N44: =-i_XB -> -0.086 | O44: =-i_XB-1/YA -> -4.252666667 | P44: 0 | Q44: 0 | R44: 1 | S44: 0 | T44: 0 | U44: 0
I45: 11 | J45: SND | K45: g N/m3 | M45: 0 | N45: 0 | O45: 0 | P45: 0 | Q45: 0 | R45: -1 | S45: 0 | T45: 1 | U45: 0
I46: 12 | J46: XND | K46: g N/m3 | M46: 0 | N46: 0 | O46: 0 | P46: =i_XB-fp*i_XP -> 0.0812 | Q46: =i_XB-fp*i_XP -> 0.0812 | R46: 0 | S46: 0 | T46: -1 | U46: 0
I47: 13 | J47: SALK | M47: =-i_XB/14 -> -0.006142857143 | N47: =((1-YH)/(14*2.86*YH))-(i_XB/14) -> 0.006158274561 | O47: =-i_XB/14-1/7/YA -> -0.6013809524 | P47: 0 | Q47: 0 | R47: =1/14 -> 0.07142857143 | S47: 0 | T47: 0 | U47: 0

Sheet Resultados
D4: Fangos Activados | K4: Estados
K5: R1 | L5: R2 | M5: R3 | N5: R4 | O5: R5 | P5: Efluente | Q5: Decantador espesado
I6: 1 | J6: SI | K6: =Solver!K6 -> 57.6 | L6: =Solver!L6 -> 57.6 | M6: =Solver!M6 -> 57.6 | N6: =Solver!N6 -> 57.6 | O6: =Solver!O6 -> 57.6 | P6: =Solver!P6 -> 57.6 | Q6: =Solver!Q6 -> 57.6 | AA6: Calidad efluente
I7: 2 | J7: SS | K7: =Solver!K7 -> 28.21464918 | L7: =Solver!L7 -> 18.18837232 | M7: =Solver!M7 -> 7.66073221 | N7: =Solver!N7 -> 5.803320775 | O7: =Solver!O7 -> 5.450337576 | P7: =Solver!P7 -> 5.450337576 | Q7: =Solver!Q7 -> 5.450337576 | AA7: N-NH4 | AB7: =P15 -> 8.479214514 | AC7: gN/m3
I8: 3 | J8: XI | K8: =Solver!K8 -> 636.0396845 | L8: =Solver!L8 -> 636.0396845 | M8: =Solver!M8 -> 636.0396845 | N8: =Solver!N8 -> 636.0396845 | O8: =Solver!O8 -> 636.0396845 | P8: =Solver!P8 -> 12.72079369 | Q8: =Solver!Q8 -> 1237.343869 | AA8: N-NO3 | AB8: =P14 -> 7.967532427 | AC8: gN/m3
D9: Agua afluente | I9: 4 | J9: XS | K9: =Solver!K9 -> 208.9319015 | L9: =Solver!L9 -> 218.9396712 | M9: =Solver!M9 -> 203.3336219 | N9: =Solver!N9 -> 187.2872406 | O9: =Solver!O9 -> 171.4791809 | P9: =Solver!P9 -> 3.429583618 | Q9: =Solver!Q9 -> 333.5935136 | AA9: NT | AB9: =NT -> 18.34689759 | AC9: gN/m3
I10: 5 | J10: XB,H | K10: =Solver!K10 -> 2052.205125 | L10: =Solver!L10 -> 2046.881859 | M10: =Solver!M10 -> 2056.054417 | N10: =Solver!N10 -> 2059.698653 | O10: =Solver!O10 -> 2062.165792 | P10: =Solver!P10 -> 41.24331583 | Q10: =Solver!Q10 -> 4011.712258
I11: 6 | J11: XB,A | K11: =Solver!K11 -> 87.56556876 | L11: =Solver!L11 -> 87.4354945 | M11: =Solver!M11 -> 87.90072209 | N11: =Solver!N11 -> 88.39574644 | O11: =Solver!O11 -> 88.88607354 | P11: =Solver!P11 -> 1.777721471 | Q11: =Solver!Q11 -> 172.9178868
D12: Parámetros del modelo | I12: 7 | J12: XP | K12: =Solver!K12 -> 552.9061784 | L12: =Solver!L12 -> 554.0461043 | M12: =Solver!M12 -> 555.8272822 | N12: =Solver!N12 -> 557.61168 | O12: =Solver!O12 -> 559.3982865 | P12: =Solver!P12 -> 11.18796573 | Q12: =Solver!Q12 -> 1088.246625
I13: 8 | J13: SO2 | K13: =Solver!K13 -> 0.0163975363 | L13: =Solver!L13 -> 0.0001534387755 | M13: =Solver!M13 -> 1.731804262 | N13: =Solver!N13 -> 2.448183959 | O13: =Solver!O13 -> 2.709451681 | P13: =Solver!P13 -> 2.709451681 | Q13: =Solver!Q13 -> 2.709451681 | S13: Volúmenes | W13: Aireación
I14: 9 | J14: SNO | K14: =Solver!K14 -> 1.731743952 | L14: =Solver!L14 -> 0.222568554 | M14: =Solver!M14 -> 2.622585555 | N14: =Solver!N14 -> 5.289048605 | O14: =Solver!O14 -> 7.967532427 | P14: =Solver!P14 -> 7.967532427 | Q14: =Solver!Q14 -> 7.967532427 | S14: VR1 | T14: =V_tot*(1-f_aer)/2 -> 900 | U14: m3 | W14: kLa_R3 | X14: =kLa_R3 -> 250 | Y14: d-1
D15: Matriz de estequiometría | I15: 10 | J15: SNH | K15: =Solver!K15 -> 16.85821428 | L15: =Solver!L15 -> 17.09905351 | M15: =Solver!M15 -> 13.72053356 | N15: =Solver!N15 -> 10.97297734 | O15: =Solver!O15 -> 8.479214514 | P15: =Solver!P15 -> 8.479214514 | Q15: =Solver!Q15 -> 8.479214514 | S15: VR2 | T15: =V_tot*(1-f_aer)/2 -> 900 | U15: m3 | W15: kLa_R4 | X15: =kLa_R4 -> 250 | Y15: d-1
I16: 11 | J16: SND | K16: =Solver!K16 -> 1.784117778 | L16: =Solver!L16 -> 0.9983218137 | M16: =Solver!M16 -> 1.377808296 | N16: =Solver!N16 -> 1.560985875 | O16: =Solver!O16 -> 1.648275473 | P16: =Solver!P16 -> 1.648275473 | Q16: =Solver!Q16 -> 1.648275473 | S16: VR3 | T16: =V_tot*(f_aer)/3 -> 1400 | U16: m3 | W16: kLa_R5 | X16: =kLa_R5 -> 250 | Y16: d-1
I17: 12 | J17: XND | K17: =Solver!K17 -> 14.04453243 | L17: =Solver!L17 -> 14.98922811 | M17: =Solver!M17 -> 14.26519966 | N17: =Solver!N17 -> 13.45026268 | O17: =Solver!O17 -> 12.59375855 | P17: =Solver!P17 -> 0.2518751711 | Q17: =Solver!Q17 -> 24.49974477 | S17: VR4 | T17: =V_tot*(f_aer)/3 -> 1400 | U17: m3 | W17: kLa_R1 | X17: =kLa_R1 -> 0.01 | Y17: d-1
D18: Inicialización | I18: 13 | J18: SALK | K18: =Solver!K18 -> 27.86689074 | L18: =Solver!L18 -> 27.99189178 | M18: =Solver!M18 -> 27.57913914 | N18: =Solver!N18 -> 27.19242348 | O18: =Solver!O18 -> 26.82297729 | P18: =Solver!P18 -> 26.82297729 | Q18: =Solver!Q18 -> 26.82297729 | S18: VR5 | T18: =V_tot*(f_aer)/3 -> 1400 | U18: m3 | W18: kLa_R2 | X18: =kLa_R2 -> 0.01 | Y18: d-1
S20: Caudales | W20: Variables operacionales
D21: Solver | S21: LW | T21: =Lw -> 800 | U21: m3/d | W21: HRT | X21: =HRT -> 6.357335217 | Y21: m3/d
S22: LRI | T22: =L_Rint -> 200 | U22: m3/d | W22: SRT | X22: =SRT -> 7.5 | Y22: m3/d
S23: LRE | T23: =LR_ext -> 100 | U23: m3/d
D24: Resultados
